[Event "Live Chess"]
[Site "Chess.com"]
[Date "2023.05.20"]
[Round "-"]
[White "chrisbradgate"]
[Black "Brooms1989"]
[Result "0-1"]
[WhiteElo "840"]
[BlackElo "974"]
[TimeControl "300"]
[EndTime "10:01:28 PDT"]
[Termination "Brooms1989 won by checkmate"]

1. d4 {[%clk 0:04:52.2]} 1... Nf6 {[%clk 0:04:57.5]} 2. Nf3 {[%clk 0:04:51]}
2... g6 {[%clk 0:04:55.1]} 3. Bg5 {[%clk 0:04:48]} 3... Bg7 {[%clk 0:04:53.3]}
4. e3 {[%clk 0:04:32.8]} 4... O-O {[%clk 0:04:51.1]} 5. Bd3 {[%clk 0:04:25]}
5... d6 {[%clk 0:04:38.9]} 6. Qd2 {[%clk 0:04:22.3]} 6... Bg4 {[%clk 0:04:33.3]}
7. e4 {[%clk 0:04:14.9]} 7... Bxf3 {[%clk 0:04:28.8]} 8. gxf3 {[%clk 0:04:13.8]}
8... h6 {[%clk 0:04:27.3]} 9. Bxh6 {[%clk 0:04:08.4]} 9... Nbd7 {[%clk
0:04:24.2]} 10. Bxg7 {[%clk 0:04:06.5]} 10... Kxg7 {[%clk 0:04:23.4]} 11. Nc3
{[%clk 0:04:02.8]} 11... a6 {[%clk 0:04:17.7]} 12. O-O-O {[%clk 0:04:01.4]}
12... Rh8 {[%clk 0:04:04.1]} 13. Rdg1 {[%clk 0:03:58.1]} 13... Rh6 {[%clk
0:03:54.6]} 14. e5 {[%clk 0:03:47.5]} 14... dxe5 {[%clk 0:03:43.6]} 15. dxe5
{[%clk 0:03:45]} 15... Nxe5 {[%clk 0:03:42.5]} 16. Be2 {[%clk 0:03:31.5]} 16...
Qxd2+ {[%clk 0:03:35.8]} 17. Kxd2 {[%clk 0:03:30.2]} 17... Rd8+ {[%clk
0:03:35.3]} 18. Kc1 {[%clk 0:03:29.4]} 18... b6 {[%clk 0:03:17.8]} 19. Rd1
{[%clk 0:03:27.8]} 19... Rxd1+ {[%clk 0:03:14.4]} 20. Bxd1 {[%clk 0:03:26.6]}
20... Nh5 {[%clk 0:03:07]} 21. Be2 {[%clk 0:03:11.1]} 21... b5 {[%clk
0:03:03.6]} 22. Nd5 {[%clk 0:03:05.3]} 22... c5 {[%clk 0:02:35.2]} 23. Nxe7
{[%clk 0:03:02.8]} 23... Nf4 {[%clk 0:02:32.9]} 24. Bf1 {[%clk 0:02:49]} 24...
Nxf3 {[%clk 0:02:28]} 25. Nc6 {[%clk 0:02:25.5]} 25... Rxh2 {[%clk 0:02:23]} 26.
Rxh2 {[%clk 0:02:23.3]} 26... Nxh2 {[%clk 0:02:22.9]} 27. Bd3 {[%clk 0:02:15]}
27... Nxd3+ {[%clk 0:02:22.1]} 28. cxd3 {[%clk 0:02:14.1]} 28... Ng4 {[%clk
0:02:18.3]} 29. Kd2 {[%clk 0:02:06.1]} 29... Nxf2 {[%clk 0:02:16.1]} 30. Ne5
{[%clk 0:01:59.8]} 30... Kf6 {[%clk 0:02:13.2]} 31. Nd7+ {[%clk 0:01:52.2]}
31... Kg5 {[%clk 0:02:08.7]} 32. Nxc5 {[%clk 0:01:51.1]} 32... Kf4 {[%clk
0:02:03.1]} 33. Nxa6 {[%clk 0:01:48.3]} 33... g5 {[%clk 0:02:02.6]} 34. Nc5
{[%clk 0:01:46.7]} 34... g4 {[%clk 0:02:01.9]} 35. Ne4 {[%clk 0:01:37.6]} 35...
Nxe4+ {[%clk 0:01:57.8]} 36. dxe4 {[%clk 0:01:36.4]} 36... Kf3 {[%clk
0:01:56.6]} 37. Ke1 {[%clk 0:01:35.3]} 37... g3 {[%clk 0:01:55.3]} 38. Kf1
{[%clk 0:01:34.2]} 38... Kxe4 {[%clk 0:01:52]} 39. Kg2 {[%clk 0:01:32.1]} 39...
Kf4 {[%clk 0:01:51.3]} 40. b3 {[%clk 0:01:24.3]} 40... f5 {[%clk 0:01:46.4]} 41.
a4 {[%clk 0:01:23.1]} 41... Kg4 {[%clk 0:01:28.6]} 42. a5 {[%clk 0:01:21.5]}
42... f4 {[%clk 0:01:28.1]} 43. a6 {[%clk 0:01:20.2]} 43... f3+ {[%clk
0:01:27.7]} 44. Kf1 {[%clk 0:01:17]} 44... g2+ {[%clk 0:01:25.3]} 45. Kf2 {[%clk
0:01:14.9]} 45... Kh3 {[%clk 0:01:23.2]} 46. a7 {[%clk 0:01:11.5]} 46... Kh2
{[%clk 0:01:20.4]} 47. a8=Q {[%clk 0:01:08.5]} 47... g1=Q+ {[%clk 0:01:20.3]}
48. Kxf3 {[%clk 0:00:29.5]} 48... Qg2+ {[%clk 0:01:17.7]} 49. Ke3 {[%clk
0:00:24.2]} 49... Qxa8 {[%clk 0:01:17.6]} 50. Kd3 {[%clk 0:00:22.2]} 50... Qc8
{[%clk 0:01:16.5]} 51. b4 {[%clk 0:00:21.3]} 51... Qc4+ {[%clk 0:01:14.5]} 52.
Ke3 {[%clk 0:00:19.6]} 52... Qxb4 {[%clk 0:01:13.6]} 53. Kd3 {[%clk 0:00:18.6]}
53... Qc4+ {[%clk 0:01:10.5]} 54. Ke3 {[%clk 0:00:17.8]} 54... Kg3 {[%clk
0:01:09.2]} 55. Kd2 {[%clk 0:00:16.3]} 55... Qb3 {[%clk 0:01:06.1]} 56. Ke2
{[%clk 0:00:14.3]} 56... Kf4 {[%clk 0:01:02.3]} 57. Kd2 {[%clk 0:00:13.1]} 57...
Ke4 {[%clk 0:01:01.6]} 58. Ke2 {[%clk 0:00:12]} 58... Qe3+ {[%clk 0:01:00.7]}
59. Kf1 {[%clk 0:00:10.4]} 59... Qd2 {[%clk 0:00:59]} 60. Kg1 {[%clk 0:00:09.2]}
60... Kf3 {[%clk 0:00:58.7]} 61. Kf1 {[%clk 0:00:08]} 61... Qf2# {[%clk
0:00:58.2]} 0-1

[Event "Live Chess"]
[Site "Chess.com"]
[Date "2023.05.20"]
[Round "-"]
[White "KGreenGator"]
[Black "LaupMiths"]
[Result "0-1"]
[WhiteElo "1768"]
[BlackElo "1838"]
[TimeControl "300"]
[EndTime "10:01:35 PDT"]
[Termination "LaupMiths won by checkmate"]

1. c4 {[%clk 0:04:58.9]} 1... Nf6 {[%clk 0:04:55]} 2. Nc3 {[%clk 0:04:57.9]}
2... e6 {[%clk 0:04:54.2]} 3. d4 {[%clk 0:04:56.2]} 3... d5 {[%clk 0:04:52.9]}
4. e3 {[%clk 0:04:55.1]} 4... c5 {[%clk 0:04:51]} 5. Nf3 {[%clk 0:04:53.7]} 5...
Nc6 {[%clk 0:04:49.8]} 6. a3 {[%clk 0:04:51.8]} 6... cxd4 {[%clk 0:04:48.3]} 7.
exd4 {[%clk 0:04:50.5]} 7... a6 {[%clk 0:04:47.7]} 8. cxd5 {[%clk 0:04:49.1]}
8... Nxd5 {[%clk 0:04:46]} 9. Nxd5 {[%clk 0:04:47.4]} 9... Qxd5 {[%clk
0:04:44.8]} 10. b3 {[%clk 0:04:42.9]} 10... Be7 {[%clk 0:04:43.5]} 11. Bc4
{[%clk 0:04:41.9]} 11... Qe4+ {[%clk 0:04:41.1]} 12. Qe2 {[%clk 0:04:38.5]}
12... Qxe2+ {[%clk 0:04:39.4]} 13. Bxe2 {[%clk 0:04:37.6]} 13... Bf6 {[%clk
0:04:38.3]} 14. Bb2 {[%clk 0:04:35.9]} 14... O-O {[%clk 0:04:37.4]} 15. O-O
{[%clk 0:04:34.8]} 15... Rd8 {[%clk 0:04:35.1]} 16. Rfd1 {[%clk 0:04:33.5]}
16... Ne7 {[%clk 0:04:34.2]} 17. Rac1 {[%clk 0:04:31.7]} 17... Nd5 {[%clk
0:04:33.1]} 18. Bc4 {[%clk 0:04:29.7]} 18... b5 {[%clk 0:04:27.7]} 19. Be2
{[%clk 0:04:28]} 19... Bb7 {[%clk 0:04:26.5]} 20. Ne5 {[%clk 0:04:26.2]} 20...
Rac8 {[%clk 0:04:24.6]} 21. Rxc8 {[%clk 0:04:23.9]} 21... Rxc8 {[%clk
0:04:22.7]} 22. h3 {[%clk 0:04:23.6]} 22... Rc2 {[%clk 0:04:20.2]} 23. Rc1
{[%clk 0:04:17.4]} 23... Rxe2 {[%clk 0:04:13.4]} 24. Ba1 {[%clk 0:04:10.6]}
24... h6 {[%clk 0:04:03.8]} 25. Nd3 {[%clk 0:04:08.4]} 25... Rd2 {[%clk
0:03:56]} 26. Nc5 {[%clk 0:04:03.2]} 26... Bc8 {[%clk 0:03:52.7]} 27. Ne4 {[%clk
0:04:00.7]} 27... Kh7 {[%clk 0:03:47.4]} 28. Nxd2 {[%clk 0:03:58.7]} 28... Bb7
{[%clk 0:03:38]} 29. Ne4 {[%clk 0:03:53.1]} 29... Nf4 {[%clk 0:03:33.6]} 30.
Nxf6+ {[%clk 0:03:46.2]} 30... gxf6 {[%clk 0:03:31.3]} 31. Re1 {[%clk
0:03:41.5]} 31... Nxg2 {[%clk 0:03:28.6]} 32. Re2 {[%clk 0:03:38.4]} 32... Nf4
{[%clk 0:03:26.9]} 33. Rd2 {[%clk 0:03:36.5]} 33... Nxh3+ {[%clk 0:03:25.3]} 34.
Kh2 {[%clk 0:03:34.6]} 34... Ng5 {[%clk 0:03:22.8]} 35. Kg3 {[%clk 0:03:32.3]}
35... Bd5 {[%clk 0:03:21]} 36. Rd3 {[%clk 0:03:28.1]} 36... Kg6 {[%clk
0:03:16.5]} 37. f4 {[%clk 0:03:26]} 37... Ne4+ {[%clk 0:03:14.5]} 38. Kh2 {[%clk
0:03:23.9]} 38... h5 {[%clk 0:03:11.7]} 39. b4 {[%clk 0:03:22.4]} 39... Kf5
{[%clk 0:03:08.4]} 40. Bb2 {[%clk 0:03:17.4]} 40... Kxf4 {[%clk 0:03:05.8]} 41.
Bc1+ {[%clk 0:03:15.3]} 41... Kg4 {[%clk 0:03:02]} 42. Rd1 {[%clk 0:03:11.6]}
42... Ng5 {[%clk 0:02:55.5]} 43. Rg1+ {[%clk 0:03:08.1]} 43... Kf5 {[%clk
0:02:54.6]} 44. Bxg5 {[%clk 0:03:05.4]} 44... fxg5 {[%clk 0:02:53.5]} 45. Rf1+
{[%clk 0:03:01.3]} 45... Kg6 {[%clk 0:02:52.2]} 46. Kg3 {[%clk 0:02:58.8]} 46...
f5 {[%clk 0:02:50.7]} 47. Re1 {[%clk 0:02:53.7]} 47... h4+ {[%clk 0:02:50.1]}
48. Kh3 {[%clk 0:02:52.4]} 48... Kh5 {[%clk 0:02:48.7]} 49. Rg1 {[%clk
0:02:50.2]} 49... g4+ {[%clk 0:02:47.7]} 50. Kh2 {[%clk 0:02:49.5]} 50... g3+
{[%clk 0:02:43.2]} 51. Kh3 {[%clk 0:02:48.7]} 51... Kg5 {[%clk 0:02:39.2]} 52.
Re1 {[%clk 0:02:46.2]} 52... f4 {[%clk 0:02:36.8]} 53. Re5+ {[%clk 0:02:42.8]}
53... Kf6 {[%clk 0:02:34.4]} 54. Kxh4 {[%clk 0:02:39]} 54... g2 {[%clk
0:02:33.5]} 55. Re1 {[%clk 0:02:38]} 55... f3 {[%clk 0:02:32.2]} 56. Kg3 {[%clk
0:02:37.2]} 56... Kf5 {[%clk 0:02:29.2]} 57. Re5+ {[%clk 0:02:31.4]} 57... Kf6
{[%clk 0:02:24.9]} 58. Re1 {[%clk 0:02:31]} 58... Kg6 {[%clk 0:02:19.2]} 59. Kf2
{[%clk 0:02:29.1]} 59... Kg5 {[%clk 0:02:17.6]} 60. Re5+ {[%clk 0:02:27.7]}
60... Kf4 {[%clk 0:02:16.1]} 61. Rh5 {[%clk 0:02:25.4]} 61... Kg4 {[%clk
0:02:10.2]} 62. Re5 {[%clk 0:02:23.1]} 62... Kf4 {[%clk 0:01:58.9]} 63. Rh5
{[%clk 0:02:21]} 63... Ke4 {[%clk 0:01:57.5]} 64. Rh4+ {[%clk 0:02:19.8]} 64...
Kd3 {[%clk 0:01:56.3]} 65. Rg4 {[%clk 0:02:13.3]} 65... Kd2 {[%clk 0:01:53.4]}
66. Kg1 {[%clk 0:02:08.3]} 66... Ke2 {[%clk 0:01:51.1]} 67. Rf4 {[%clk
0:02:05.2]} 67... Ke3 {[%clk 0:01:44.3]} 68. Rf8 {[%clk 0:02:02.6]} 68... Kxd4
{[%clk 0:01:43.3]} 69. Kf2 {[%clk 0:02:01.6]} 69... e5 {[%clk 0:01:42.1]} 70.
Rd8 {[%clk 0:02:00.2]} 70... e4 {[%clk 0:01:40.9]} 71. Re8 {[%clk 0:01:57.9]}
71... e3+ {[%clk 0:01:35.5]} 72. Rxe3 {[%clk 0:01:56.5]} 72... g1=Q+ {[%clk
0:01:31.8]} 73. Kxg1 {[%clk 0:01:55.8]} 73... Kxe3 {[%clk 0:01:30.8]} 74. Kf1
{[%clk 0:01:55.5]} 74... Bc4+ {[%clk 0:01:29.5]} 75. Kg1 {[%clk 0:01:53.6]}
75... f2+ {[%clk 0:01:28.5]} 76. Kh2 {[%clk 0:01:53.2]} 76... f1=Q {[%clk
0:01:25.3]} 77. a4 {[%clk 0:01:52.9]} 77... bxa4 {[%clk 0:01:23.1]} 78. b5
{[%clk 0:01:51.9]} 78... axb5 {[%clk 0:01:21.4]} 79. Kg3 {[%clk 0:01:51.7]}
79... Qf3+ {[%clk 0:01:19.7]} 80. Kh2 {[%clk 0:01:51.4]} 80... Qg4 {[%clk
0:01:17.9]} 81. Kh1 {[%clk 0:01:50.1]} 81... Bd5+ {[%clk 0:01:17.4]} 82. Kh2
{[%clk 0:01:49.7]} 82... Qg2# {[%clk 0:01:16.7]} 0-1

[Event "Live Chess"]
[Site "Chess.com"]
[Date "2023.05.20"]
[Round "-"]
[White "lateforthesky"]
[Black "ossie57"]
[Result "1-0"]
[WhiteElo "2086"]
[BlackElo "1821"]
[TimeControl "300"]
[EndTime "10:01:40 PDT"]
[Termination "lateforthesky won by checkmate"]

1. e4 {[%clk 0:04:57.5]} 1... d6 {[%clk 0:04:58.4]} 2. d4 {[%clk 0:04:55.7]}
2... Nf6 {[%clk 0:04:57.5]} 3. Nc3 {[%clk 0:04:55.2]} 3... Nbd7 {[%clk 0:04:57]}
4. Nf3 {[%clk 0:04:51.4]} 4... e5 {[%clk 0:04:55.7]} 5. Rg1 {[%clk 0:04:44.8]}
5... Be7 {[%clk 0:04:54.3]} 6. g4 {[%clk 0:04:43]} 6... h6 {[%clk 0:04:53.1]} 7.
h4 {[%clk 0:04:37.5]} 7... c6 {[%clk 0:04:49.9]} 8. g5 {[%clk 0:04:35.2]} 8...
hxg5 {[%clk 0:04:48]} 9. hxg5 {[%clk 0:04:33.9]} 9... Nh5 {[%clk 0:04:40.8]} 10.
g6 {[%clk 0:04:32.7]} 10... f6 {[%clk 0:04:28.3]} 11. Bc4 {[%clk 0:04:27.3]}
11... d5 {[%clk 0:04:12.6]} 12. exd5 {[%clk 0:04:25]} 12... b5 {[%clk
0:04:11.7]} 13. Bb3 {[%clk 0:04:13]} 13... Nf8 {[%clk 0:04:04.5]} 14. dxc6
{[%clk 0:04:08]} 14... Be6 {[%clk 0:04:03.7]} 15. d5 {[%clk 0:04:04]} 15... Bf5
{[%clk 0:03:44.7]} 16. Be3 {[%clk 0:04:01.8]} 16... Bb4 {[%clk 0:03:24.3]} 17.
a3 {[%clk 0:03:55.2]} 17... Bxc3+ {[%clk 0:03:22]} 18. bxc3 {[%clk 0:03:53.7]}
18... Qa5 {[%clk 0:03:16.9]} 19. Qd2 {[%clk 0:03:51.8]} 19... O-O-O {[%clk
0:02:55.5]} 20. a4 {[%clk 0:03:48.7]} 20... Nxg6 {[%clk 0:02:33.9]} 21. Ra2
{[%clk 0:03:23.3]} 21... a6 {[%clk 0:02:17.8]} 22. axb5 {[%clk 0:03:21]} 22...
Qxb5 {[%clk 0:02:13.6]} 23. c4 {[%clk 0:03:09.1]} 23... Qb8 {[%clk 0:01:59.5]}
24. Rxa6 {[%clk 0:03:02.4]} 24... Nhf4 {[%clk 0:01:44.4]} 25. Qa5 {[%clk
0:02:58.9]} 25... Be4 {[%clk 0:01:09.3]} 26. Ra8 {[%clk 0:02:43.8]} 26... Bxf3
{[%clk 0:01:07.6]} 27. Rxb8+ {[%clk 0:02:42.2]} 27... Kxb8 {[%clk 0:01:07.1]}
28. Qa7+ {[%clk 0:02:36.6]} 28... Kc8 {[%clk 0:01:06.5]} 29. Qb7# {[%clk
0:02:35.8]} 1-0

[Event "Live Chess"]
[Site "Chess.com"]
[Date "2023.05.20"]
[Round "-"]
[White "TheSmoulderingMaster"]
[Black "Doge_Dandolo"]
[Result "0-1"]
[WhiteElo "1792"]
[BlackElo "2172"]
[TimeControl "300"]
[EndTime "10:01:43 PDT"]
[Termination "Doge_Dandolo won by resignation"]

1. e4 {[%clk 0:04:59]} 1... c6 {[%clk 0:04:58.7]} 2. d4 {[%clk 0:04:57.9]} 2...
d5 {[%clk 0:04:57.3]} 3. Nc3 {[%clk 0:04:57.3]} 3... dxe4 {[%clk 0:04:56]} 4.
Nxe4 {[%clk 0:04:56.6]} 4... Bf5 {[%clk 0:04:55.6]} 5. Ng3 {[%clk 0:04:55.7]}
5... Bg6 {[%clk 0:04:54.7]} 6. Nh3 {[%clk 0:04:54.4]} 6... Nf6 {[%clk
0:04:48.4]} 7. Nf4 {[%clk 0:04:53.4]} 7... e5 {[%clk 0:04:47]} 8. dxe5 {[%clk
0:04:51.5]} 8... Qa5+ {[%clk 0:04:45.4]} 9. Bd2 {[%clk 0:04:48.6]} 9... Qxe5+
{[%clk 0:04:44.1]} 10. Be2 {[%clk 0:04:47.9]} 10... Nbd7 {[%clk 0:04:38.4]} 11.
O-O {[%clk 0:04:46.7]} 11... Bd6 {[%clk 0:04:36.9]} 12. Re1 {[%clk 0:04:44.1]}
12... O-O-O {[%clk 0:04:27.2]} 13. Nxg6 {[%clk 0:04:36.1]} 13... hxg6 {[%clk
0:04:24.7]} 14. Bf3 {[%clk 0:04:31.5]} 14... Qb5 {[%clk 0:04:17.9]} 15. a4
{[%clk 0:04:25.8]} 15... Qb6 {[%clk 0:04:14.4]} 16. a5 {[%clk 0:04:24.6]} 16...
Qc7 {[%clk 0:04:12.8]} 17. a6 {[%clk 0:04:18.6]} 17... b6 {[%clk 0:04:09.5]} 18.
Be3 {[%clk 0:04:16.6]} 18... Ne5 {[%clk 0:04:06.1]} 19. Qd4 {[%clk 0:04:02.2]}
19... Nxf3+ {[%clk 0:04:01.5]} 20. gxf3 {[%clk 0:04:01.3]} 20... Bxg3 {[%clk
0:03:58.8]} 0-1

[Event "Live Chess"]
[Site "Chess.com"]
[Date "2023.05.20"]
[Round "-"]
[White "thrithik"]
[Black "CocheseUK"]
[Result "0-1"]
[WhiteElo "471"]
[BlackElo "1079"]
[TimeControl "300"]
[EndTime "10:01:45 PDT"]
[Termination "CocheseUK won by checkmate"]

1. c3 {[%clk 0:04:56.5]} 1... e5 {[%clk 0:04:53.3]} 2. Qa4 {[%clk 0:04:56.1]}
2... Nc6 {[%clk 0:04:48.2]} 3. Na3 {[%clk 0:04:55.8]} 3... d5 {[%clk 0:04:42.4]}
4. Nb5 {[%clk 0:04:53.2]} 4... a6 {[%clk 0:04:37.9]} 5. Na3 {[%clk 0:04:52.6]}
5... Bd7 {[%clk 0:04:32.7]} 6. Nb1 {[%clk 0:04:52.3]} 6... Bc5 {[%clk
0:04:28.1]} 7. Nf3 {[%clk 0:04:50.4]} 7... f5 {[%clk 0:04:18.7]} 8. a3 {[%clk
0:04:43.9]} 8... e4 {[%clk 0:04:05.6]} 9. Ne5 {[%clk 0:04:41.1]} 9... b5 {[%clk
0:03:48.3]} 10. Nxc6 {[%clk 0:04:33.2]} 10... Bxc6 {[%clk 0:03:47.1]} 11. Qa5
{[%clk 0:04:26.3]} 11... Bb6 {[%clk 0:03:42.3]} 12. Qb4 {[%clk 0:04:18.9]} 12...
Nf6 {[%clk 0:03:20.9]} 13. Qb3 {[%clk 0:04:05.2]} 13... Ng4 {[%clk 0:03:17.7]}
14. h3 {[%clk 0:04:00.9]} 14... Nxf2 {[%clk 0:03:10.3]} 15. Rg1 {[%clk
0:03:49.9]} 15... Nxh3 {[%clk 0:03:05.7]} 16. gxh3 {[%clk 0:03:47.3]} 16... Bxg1
{[%clk 0:03:04]} 17. d3 {[%clk 0:03:30.1]} 17... Qh4+ {[%clk 0:03:01.8]} 18. Kd1
{[%clk 0:03:22.2]} 18... Qf2 {[%clk 0:02:52.4]} 19. e3 {[%clk 0:03:19.2]} 19...
Qxf1+ {[%clk 0:02:46.6]} 20. Kc2 {[%clk 0:03:17.1]} 20... Qe2+ {[%clk
0:02:41.5]} 21. Bd2 {[%clk 0:03:11.4]} 21... exd3+ {[%clk 0:02:32.7]} 22. Kc1
{[%clk 0:03:02.5]} 22... Qf1+ {[%clk 0:02:26.5]} 23. Be1 {[%clk 0:02:57.7]}
23... Qxe1+ {[%clk 0:02:23.6]} 24. Qd1 {[%clk 0:02:53.5]} 24... Bxe3+ {[%clk
0:02:19.1]} 25. Nd2 {[%clk 0:02:42.5]} 25... Bxd2+ {[%clk 0:02:07.6]} 26. Kb1
{[%clk 0:02:26.4]} 26... Qxd1+ {[%clk 0:02:06.3]} 27. Ka2 {[%clk 0:02:24.4]}
27... Qxa1+ {[%clk 0:02:04.3]} 28. Kxa1 {[%clk 0:02:22.9]} 28... f4 {[%clk
0:01:58]} 29. Kb1 {[%clk 0:02:19]} 29... O-O-O {[%clk 0:01:56.4]} 30. Ka2 {[%clk
0:02:15]} 30... Rde8 {[%clk 0:01:53.9]} 31. c4 {[%clk 0:02:14.4]} 31... Re2
{[%clk 0:01:41.4]} 32. h4 {[%clk 0:02:11.2]} 32... Rhe8 {[%clk 0:01:39.3]} 33.
c5 {[%clk 0:02:05.8]} 33... d4 {[%clk 0:01:36.1]} 34. h5 {[%clk 0:01:58.8]}
34... Rg2 {[%clk 0:01:34.1]} 35. h6 {[%clk 0:01:56.8]} 35... Bd5+ {[%clk
0:01:32.7]} 36. b3 {[%clk 0:01:51.4]} 36... Bc3+ {[%clk 0:01:26.3]} 37. Kb1
{[%clk 0:01:44]} 37... Re1# {[%clk 0:01:24.8]} 0-1

[Event "Live Chess"]
[Site "Chess.com"]
[Date "2023.05.20"]
[Round "-"]
[White "MartinWalker4"]
[Black "McSlash1"]
[Result "1/2-1/2"]
[WhiteElo "2073"]
[BlackElo "2071"]
[TimeControl "300"]
[EndTime "10:01:49 PDT"]
[Termination "Game drawn by agreement"]

1. e4 {[%clk 0:04:56.2]} 1... c5 {[%clk 0:04:59.6]} 2. Nf3 {[%clk 0:04:53.7]}
2... d6 {[%clk 0:04:59.1]} 3. Bb5+ {[%clk 0:04:52.3]} 3... Bd7 {[%clk
0:04:58.2]} 4. Bxd7+ {[%clk 0:04:50.6]} 4... Qxd7 {[%clk 0:04:58.1]} 5. O-O
{[%clk 0:04:48.8]} 5... Nf6 {[%clk 0:04:57.1]} 6. Re1 {[%clk 0:04:46.1]} 6...
Nc6 {[%clk 0:04:56.2]} 7. c3 {[%clk 0:04:41.5]} 7... g6 {[%clk 0:04:55.4]} 8. d4
{[%clk 0:04:40.2]} 8... cxd4 {[%clk 0:04:55.3]} 9. cxd4 {[%clk 0:04:38.2]} 9...
Bg7 {[%clk 0:04:52.6]} 10. Nc3 {[%clk 0:04:36.9]} 10... O-O {[%clk 0:04:51.1]}
11. Bg5 {[%clk 0:04:34.9]} 11... h6 {[%clk 0:04:50]} 12. Bxf6 {[%clk 0:04:18.4]}
12... Bxf6 {[%clk 0:04:49.9]} 13. e5 {[%clk 0:04:17.1]} 13... dxe5 {[%clk
0:04:47.3]} 14. dxe5 {[%clk 0:04:15.5]} 14... Qxd1 {[%clk 0:04:47.2]} 15. Raxd1
{[%clk 0:04:13.6]} 15... Bg7 {[%clk 0:04:46.6]} 16. Rd7 {[%clk 0:04:12.3]} 16...
Rab8 {[%clk 0:04:39.8]} 17. Nd5 {[%clk 0:03:56.1]} 17... e6 {[%clk 0:04:28.2]}
18. Ne7+ {[%clk 0:03:23.4]} 18... Kh8 {[%clk 0:04:26.3]} 19. Nxc6 {[%clk
0:03:16.2]} 19... bxc6 {[%clk 0:04:24]} 20. Rxa7 {[%clk 0:03:10.9]} 20... Rxb2
{[%clk 0:04:23.5]} 21. h3 {[%clk 0:03:09.2]} 21... Kg8 {[%clk 0:04:16.2]} 22. a4
{[%clk 0:03:05.7]} 22... Rc8 {[%clk 0:04:14.6]} 23. a5 {[%clk 0:03:00.4]} 23...
Ra2 {[%clk 0:04:13.8]} 24. Nd4 {[%clk 0:02:52.8]} 24... c5 {[%clk 0:04:11.8]}
25. Nb5 {[%clk 0:02:51.7]} 25... c4 {[%clk 0:04:04.8]} 26. a6 {[%clk 0:02:47]}
26... c3 {[%clk 0:03:59.3]} 27. Rc7 {[%clk 0:02:43.4]} 27... Rxc7 {[%clk
0:03:51.6]} 28. Nxc7 {[%clk 0:02:41.9]} 28... c2 {[%clk 0:03:50.7]} 29. f4
{[%clk 0:02:31.3]} 29... Bf8 {[%clk 0:03:44.4]} 30. Kf1 {[%clk 0:02:13.4]} 30...
Bb4 {[%clk 0:03:40.1]} 31. Rc1 {[%clk 0:02:10.6]} 31... Ba5 {[%clk 0:03:23.9]}
32. Rxc2 {[%clk 0:01:57.2]} 32... Rxc2 {[%clk 0:03:13.7]} 33. a7 {[%clk
0:01:56]} 33... Rc1+ {[%clk 0:03:12.3]} 34. Ke2 {[%clk 0:01:54.1]} 34... Rc2+
{[%clk 0:03:07.7]} 35. Kd3 {[%clk 0:01:52]} 35... Rc3+ {[%clk 0:03:06.5]} 36.
Ke2 {[%clk 0:01:35.4]} 36... Rc2+ {[%clk 0:03:04.2]} 37. Kd3 {[%clk 0:01:32.5]}
1/2-1/2

[Event "Live Chess"]
[Site "Chess.com"]
[Date "2023.05.20"]
[Round "-"]
[White "Zeraora719"]
[Black "alanmike75"]
[Result "0-1"]
[WhiteElo "800"]
[BlackElo "1484"]
[TimeControl "300"]
[EndTime "10:01:50 PDT"]
[Termination "alanmike75 won by checkmate"]

1. e4 {[%clk 0:04:54.6]} 1... e5 {[%clk 0:04:58.6]} 2. f4 {[%clk 0:04:50]} 2...
exf4 {[%clk 0:04:57.1]} 3. Nf3 {[%clk 0:04:48.6]} 3... Nf6 {[%clk 0:04:55.6]} 4.
Nc3 {[%clk 0:04:45.4]} 4... d5 {[%clk 0:04:54.4]} 5. d3 {[%clk 0:04:38.8]} 5...
dxe4 {[%clk 0:04:52.9]} 6. dxe4 {[%clk 0:04:37.5]} 6... Qxd1+ {[%clk 0:04:51.3]}
7. Nxd1 {[%clk 0:04:35.4]} 7... Nxe4 {[%clk 0:04:49.5]} 8. Bxf4 {[%clk
0:04:32.7]} 8... Bd6 {[%clk 0:04:45.3]} 9. Bxd6 {[%clk 0:04:29.9]} 9... Nxd6
{[%clk 0:04:43.8]} 10. Ne5 {[%clk 0:04:27.9]} 10... O-O {[%clk 0:04:39.5]} 11.
g4 {[%clk 0:04:18.5]} 11... Re8 {[%clk 0:04:37.8]} 12. Bc4 {[%clk 0:03:56.5]}
12... Rxe5+ {[%clk 0:04:35.7]} 13. Kf1 {[%clk 0:03:54.9]} 13... Nxc4 {[%clk
0:04:34.2]} 14. b3 {[%clk 0:03:47.9]} 14... Nd2+ {[%clk 0:04:24.8]} 15. Kf2
{[%clk 0:03:42.6]} 15... Bxg4 {[%clk 0:04:23]} 16. h3 {[%clk 0:03:37.9]} 16...
Bh5 {[%clk 0:04:16.9]} 17. h4 {[%clk 0:03:36.1]} 17... Nc6 {[%clk 0:04:15.1]}
18. Nc3 {[%clk 0:03:28.3]} 18... Rd8 {[%clk 0:04:10.8]} 19. Rhe1 {[%clk
0:03:22.7]} 19... Nf3 {[%clk 0:03:58.2]} 20. Rxe5 {[%clk 0:03:14.9]} 20... Nfxe5
{[%clk 0:03:56.5]} 21. Nb5 {[%clk 0:03:08.6]} 21... Rd7 {[%clk 0:03:54.3]} 22.
Nxa7 {[%clk 0:03:06.7]} 22... Nxa7 {[%clk 0:03:52.6]} 23. c4 {[%clk 0:03:04.8]}
23... c5 {[%clk 0:03:49.4]} 24. b4 {[%clk 0:02:56.7]} 24... cxb4 {[%clk
0:03:46.2]} 25. a4 {[%clk 0:02:54.6]} 25... f6 {[%clk 0:03:43.9]} 26. a5 {[%clk
0:02:52.5]} 26... Nac6 {[%clk 0:03:41.4]} 27. a6 {[%clk 0:02:48.3]} 27... bxa6
{[%clk 0:03:40.1]} 28. Rxa6 {[%clk 0:02:45.7]} 28... b3 {[%clk 0:03:38.5]} 29.
Ra8+ {[%clk 0:02:38.4]} 29... Kf7 {[%clk 0:03:36.2]} 30. Ra1 {[%clk 0:02:30.8]}
30... b2 {[%clk 0:03:34.4]} 31. Rb1 {[%clk 0:02:29.4]} 31... Nd4 {[%clk
0:03:30.9]} 32. Rxb2 {[%clk 0:02:27.2]} 32... Nd3+ {[%clk 0:03:29.6]} 33. Ke3
{[%clk 0:02:24.5]} 33... Nxb2 {[%clk 0:03:28.1]} 34. Kd2 {[%clk 0:02:23]} 34...
Nxc4+ {[%clk 0:03:26.6]} 35. Kd3 {[%clk 0:02:19.5]} 35... Ne5+ {[%clk
0:03:25.2]} 36. Ke4 {[%clk 0:02:16.4]} 36... Bg6+ {[%clk 0:03:23.5]} 37. Kf4
{[%clk 0:02:14.2]} 37... Ne2+ {[%clk 0:03:19.9]} 38. Ke3 {[%clk 0:02:12]} 38...
Ng3 {[%clk 0:03:16.8]} 39. Kf4 {[%clk 0:02:09.4]} 39... Nf5 {[%clk 0:03:13.8]}
40. h5 {[%clk 0:02:07.5]} 40... Nd3+ {[%clk 0:03:08.9]} 41. Kg4 {[%clk
0:02:04.2]} 41... Ne3+ {[%clk 0:03:02.2]} 42. Kh4 {[%clk 0:02:01.3]} 42... Bf5
{[%clk 0:02:58.9]} 43. h6 {[%clk 0:01:55.5]} 43... g5+ {[%clk 0:02:56.2]} 44.
Kh5 {[%clk 0:01:53.6]} 44... Bg6# {[%clk 0:02:54.7]} 0-1